[Event "Titled Tuesday Blitz December 27 Late 2022"]
[White "Dzierzak, Radoslaw"]
[Black "Ronka, Erik"]
[WhiteFideId "1161407"]
[BlackFideId "505080"]
[WhiteElo "2220"]
[BlackElo "2276"]
[Result "1-0"]
[Round "05"]
[TimeControl "180+2"]
[Date "2022.12.27"]
[WhiteClock "0:00:08"]
[BlackClock "0:00:07"]

1. e4 {[%clk 0:03:00]}  c6 {[%clk 0:02:59]} 2. Nf3 {[%clk 0:03:00]}  d5 {[%clk 0:03:00]} 3. Nc3 {[%clk 0:03:00]}  dxe4 {[%clk 0:03:00]} 4. Nxe4 {[%clk 0:03:01]}  Nf6 {[%clk 0:03:01]} 5. Qe2 {[%clk 0:03:01]}  Nxe4 {[%clk 0:03:00]} 6. Qxe4 {[%clk 0:03:02]}  Qa5 {[%clk 0:02:59]} 7. Bc4 {[%clk 0:02:57]}  Bf5 {[%clk 0:02:55]} 8. Qf4 {[%clk 0:02:32]}  e6 {[%clk 0:02:52]} 9. g4 {[%clk 0:02:29]}  Bg6 {[%clk 0:02:15]} 10. h4 {[%clk 0:02:28]}  Nd7 {[%clk 0:02:11]} 11. h5 {[%clk 0:02:27]}  Bxc2 {[%clk 0:02:10]} 12. Ng5 {[%clk 0:01:57]}  Qe5+ {[%clk 0:02:09]} 13. Qxe5 {[%clk 0:01:51]}  Nxe5 {[%clk 0:02:10]} 14. Be2 {[%clk 0:01:51]}  h6 {[%clk 0:01:48]} 15. Nh3 {[%clk 0:01:51]}  Nd3+ {[%clk 0:01:44]} 16. Bxd3 {[%clk 0:01:43]}  Bxd3 {[%clk 0:01:45]} 17. Nf4 {[%clk 0:01:43]}  Be4 {[%clk 0:01:44]} 18. O-O {[%clk 0:01:43]}  O-O-O {[%clk 0:01:40]} 19. f3 {[%clk 0:01:42]}  Bd5 {[%clk 0:01:37]} 20. d4 {[%clk 0:01:38]}  Bd6 {[%clk 0:01:33]} 21. Nxd5 {[%clk 0:01:36]}  exd5 {[%clk 0:01:13]} 22. Bd2 {[%clk 0:01:35]}  Kd7 {[%clk 0:01:12]} 23. Kg2 {[%clk 0:01:32]}  Rhe8 {[%clk 0:01:07]} 24. Rae1 {[%clk 0:01:31]}  b6 {[%clk 0:01:06]} 25. b3 {[%clk 0:01:29]}  c5 {[%clk 0:01:06]} 26. dxc5 {[%clk 0:01:28]}  bxc5 {[%clk 0:01:07]} 27. Ba5 {[%clk 0:01:22]}  Rc8 {[%clk 0:00:57]} 28. Rd1 {[%clk 0:01:19]}  Kc6 {[%clk 0:00:57]} 29. Kf2 {[%clk 0:01:17]}  d4 {[%clk 0:00:48]} 30. Bd2 {[%clk 0:01:13]}  Kd5 {[%clk 0:00:46]} 31. Rc1 {[%clk 0:01:09]}  c4 {[%clk 0:00:39]} 32. bxc4+ {[%clk 0:01:09]}  Rxc4 {[%clk 0:00:40]} 33. Rxc4 {[%clk 0:01:08]}  Kxc4 {[%clk 0:00:41]} 34. Rc1+ {[%clk 0:01:09]}  Kd3 {[%clk 0:00:40]} 35. Ba5 {[%clk 0:01:07]}  Re2+ {[%clk 0:00:37]} 36. Kf1 {[%clk 0:01:06]}  Rxa2 {[%clk 0:00:36]} 37. Rd1+ {[%clk 0:01:05]}  Kc4 {[%clk 0:00:35]} 38. Rc1+ {[%clk 0:00:53]}  Kd5 {[%clk 0:00:32]} 39. Bd8 {[%clk 0:00:52]}  Bf4 {[%clk 0:00:25]} 40. Rd1 {[%clk 0:00:49]}  a5 {[%clk 0:00:21]} 41. Be7 {[%clk 0:00:49]}  Be3 {[%clk 0:00:20]} 42. Bf8 {[%clk 0:00:46]}  g6 {[%clk 0:00:19]} 43. hxg6 {[%clk 0:00:45]}  fxg6 {[%clk 0:00:20]} 44. Bg7 {[%clk 0:00:38]}  Rh2 {[%clk 0:00:18]} 45. Rd3 {[%clk 0:00:34]}  Kc4 {[%clk 0:00:18]} 46. Ra3 {[%clk 0:00:34]}  d3 {[%clk 0:00:16]} 47. Rc3+ {[%clk 0:00:32]}  Kb5 {[%clk 0:00:14]} 48. Rxd3 {[%clk 0:00:32]}  Bc5 {[%clk 0:00:14]} 49. Rd5 {[%clk 0:00:22]}  Rf2+ {[%clk 0:00:13]} 50. Ke1 {[%clk 0:00:20]}  Rxf3 {[%clk 0:00:14]} 51. Bd4 {[%clk 0:00:18]}  Kc4 {[%clk 0:00:13]} 52. Rxc5+ {[%clk 0:00:17]}  Kxd4 {[%clk 0:00:13]} 53. Rxa5 {[%clk 0:00:17]}  Rf4 {[%clk 0:00:13]} 54. g5 {[%clk 0:00:16]}  hxg5 {[%clk 0:00:03]} 55. Rxg5 {[%clk 0:00:16]}  Rf6 {[%clk 0:00:03]} 56. Ke2 {[%clk 0:00:15]}  Ke4 {[%clk 0:00:04]} 57. Rg4+ {[%clk 0:00:11]}  Kf5 {[%clk 0:00:04]} 58. Kf3 {[%clk 0:00:11]}  Rb6 {[%clk 0:00:03]} 59. Rc4 {[%clk 0:00:08]}  Rb3+ {[%clk 0:00:03]} 60. Kg2 {[%clk 0:00:08]}  g5 {[%clk 0:00:04]} 61. Ra4 {[%clk 0:00:07]}  Kg6 {[%clk 0:00:04]} 62. Rc4 {[%clk 0:00:05]}  Kh5 {[%clk 0:00:05]} 63. Ra4 {[%clk 0:00:06]}  g4 {[%clk 0:00:05]} 64. Ra8 {[%clk 0:00:06]}  Rb2+ {[%clk 0:00:04]} 65. Kg3 {[%clk 0:00:05]}  Rb3+ {[%clk 0:00:05]} 66. Kg2 {[%clk 0:00:05]}  Kg5 {[%clk 0:00:05]} 67. Rg8+ {[%clk 0:00:05]}  Kf4 {[%clk 0:00:06]} 68. Rf8+ {[%clk 0:00:05]}  Ke3 {[%clk 0:00:06]} 69. Re8+ {[%clk 0:00:05]}  Kf4 {[%clk 0:00:05]} 70. Rf8+ {[%clk 0:00:06]}  Kg5 {[%clk 0:00:06]} 71. Rg8+ {[%clk 0:00:06]}  Kf5 {[%clk 0:00:05]} 72. Rf8+ {[%clk 0:00:06]}  Ke6 {[%clk 0:00:06]} 73. Rg8 {[%clk 0:00:06]}  Rb4 {[%clk 0:00:05]} 74. Kg3 {[%clk 0:00:06]}  Kf5 {[%clk 0:00:06]} 75. Rf8+ {[%clk 0:00:06]}  Kg5 {[%clk 0:00:06]} 76. Rg8+ {[%clk 0:00:06]}  Kh5 {[%clk 0:00:06]} 77. Rh8+ {[%clk 0:00:07]}  Kg6 {[%clk 0:00:06]} 78. Rg8+ {[%clk 0:00:07]}  Kf7 {[%clk 0:00:06]} 79. Rxg4 {[%clk 0:00:07]}  Rb3+ {[%clk 0:00:07]} 80. Kh4 {[%clk 0:00:07]}  Ke6 {[%clk 0:00:08]} 81. Kg5 {[%clk 0:00:08]}  Rb5+ {[%clk 0:00:08]} 82. Kf4 {[%clk 0:00:07]}  Rb4+ {[%clk 0:00:07]} 83. Kg3 {[%clk 0:00:08]}  Rb3+ {[%clk 0:00:07]} 84. Kh4 {[%clk 0:00:08]}  Kf5 {[%clk 0:00:07]} 85. Rg5+ {[%clk 0:00:08]}  Kf6 {[%clk 0:00:07]} 86. Rg3 {[%clk 0:00:07]}  Rb8 {[%clk 0:00:05]} 87. Kh3 {[%clk 0:00:07]}  Kf5 {[%clk 0:00:05]} 88. Kg2 {[%clk 0:00:07]}  Kf4 {[%clk 0:00:05]} 89. Rf3+ {[%clk 0:00:08]}  Ke4 {[%clk 0:00:06]} 90. Rg3 {[%clk 0:00:08]}  Rb2+ {[%clk 0:00:05]} 91. Kh3 {[%clk 0:00:08]}  Kf4 {[%clk 0:00:06]} 92. Rg4+ {[%clk 0:00:09]}  Kf5 {[%clk 0:00:07]} 93. Rg3 {[%clk 0:00:07]}  Rb4 {[%clk 0:00:06]} 94. Kg2 {[%clk 0:00:07]}  Kf4 {[%clk 0:00:05]} 95. Rf3+ {[%clk 0:00:07]}  Ke4 {[%clk 0:00:05]} 96. Rh3 {[%clk 0:00:07]}  Rb2+ {[%clk 0:00:05]} 97. Kg3 {[%clk 0:00:07]}  Ke3 {[%clk 0:00:04]} 98. Kg4+ {[%clk 0:00:07]}  Ke4 {[%clk 0:00:04]} 99. Rg3 {[%clk 0:00:07]}  Rb8 {[%clk 0:00:04]} 100. Kh3 {[%clk 0:00:06]}  Rh8+ {[%clk 0:00:04]} 101. Kg2 {[%clk 0:00:06]}  Kf4 {[%clk 0:00:04]} 102. Ra3 {[%clk 0:00:05]}  Rg8+ {[%clk 0:00:04]} 103. Kf2 {[%clk 0:00:06]}  Rb8 {[%clk 0:00:04]} 104. Ra4+ {[%clk 0:00:06]}  Ke5 {[%clk 0:00:05]} 105. Kf3 {[%clk 0:00:06]}  Rb3+ {[%clk 0:00:04]} 106. Kf2 {[%clk 0:00:06]}  Kf5 {[%clk 0:00:04]} 107. Rc4 {[%clk 0:00:04]}  Rb2+ {[%clk 0:00:04]} 108. Kf3 {[%clk 0:00:04]}  Ke5 {[%clk 0:00:04]} 109. Ra4 {[%clk 0:00:03]}  Kd5 {[%clk 0:00:04]} 110. Rg4 {[%clk 0:00:03]}  Rb3+ {[%clk 0:00:04]} 111. Kg2 {[%clk 0:00:03]}  Rb2+ {[%clk 0:00:04]} 112. Kf3 {[%clk 0:00:03]}  Ke5 {[%clk 0:00:05]} 113. Ra4 {[%clk 0:00:02]}  Rb3+ {[%clk 0:00:04]} 114. Ke2 {[%clk 0:00:03]}  Rb8 {[%clk 0:00:03]} 115. Ra5+ {[%clk 0:00:03]}  Kd4 {[%clk 0:00:04]} 116. Ra4+ {[%clk 0:00:03]}  Kc3 {[%clk 0:00:04]} 117. Ke3 {[%clk 0:00:04]}  Re8+ {[%clk 0:00:04]} 118. Re4 {[%clk 0:00:04]}  Kb3 {[%clk 0:00:05]} 119. Rxe8 {[%clk 0:00:04]}  Kc3 {[%clk 0:00:05]} 120. Rc8+ {[%clk 0:00:04]}  Kb4 {[%clk 0:00:04]} 121. Kd4 {[%clk 0:00:05]}  Ka5 {[%clk 0:00:04]} 122. Rb8 {[%clk 0:00:05]}  Ka6 {[%clk 0:00:04]} 123. Kc5 {[%clk 0:00:05]}  Ka7 {[%clk 0:00:05]} 124. Rb1 {[%clk 0:00:06]}  Ka8 {[%clk 0:00:05]} 125. Rb2 {[%clk 0:00:06]}  Ka7 {[%clk 0:00:06]} 126. Rb1 {[%clk 0:00:06]}  Ka8 {[%clk 0:00:07]} 127. Kc6 {[%clk 0:00:06]}  Ka7 {[%clk 0:00:07]} 128. Rb2 {[%clk 0:00:07]}  Ka8 {[%clk 0:00:07]} 129. Kc7 {[%clk 0:00:07]}  Ka7 {[%clk 0:00:07]} 130. Ra2# {[%clk 0:00:08]} 1-0


[Site "https://www.chess.com"]

[Event "Titled Tuesday Blitz December 27 Late 2022"]
[White "Fiorito, Joaquin"]
[Black "Domingo Nunez, Ruben"]
[WhiteFideId "180173"]
[BlackFideId "22245570"]
[WhiteElo "2405"]
[BlackElo "2416"]
[Result "0-1"]
[Round "05"]
[TimeControl "180+2"]
[Date "2022.12.27"]
[WhiteClock "0:00:30"]
[BlackClock "0:00:10"]

1. d4 {[%clk 0:03:00]}  Nf6 {[%clk 0:02:58]} 2. Nc3 {[%clk 0:03:01]}  d5 {[%clk 0:02:56]} 3. Bf4 {[%clk 0:03:00]}  a6 {[%clk 0:02:55]} 4. e3 {[%clk 0:03:01]}  c5 {[%clk 0:02:56]} 5. dxc5 {[%clk 0:02:57]}  e6 {[%clk 0:02:56]} 6. Nf3 {[%clk 0:02:52]}  Bxc5 {[%clk 0:02:56]} 7. Bd3 {[%clk 0:02:53]}  Nc6 {[%clk 0:02:56]} 8. O-O {[%clk 0:02:53]}  O-O {[%clk 0:02:57]} 9. e4 {[%clk 0:02:53]}  Nb4 {[%clk 0:02:46]} 10. e5 {[%clk 0:02:42]}  Nxd3 {[%clk 0:02:46]} 11. cxd3 {[%clk 0:02:27]}  Nd7 {[%clk 0:02:46]} 12. d4 {[%clk 0:02:27]}  Be7 {[%clk 0:02:46]} 13. Qd2 {[%clk 0:02:02]}  Nb6 {[%clk 0:02:11]} 14. b3 {[%clk 0:02:02]}  Bd7 {[%clk 0:02:11]} 15. Ne2 {[%clk 0:01:47]}  Rc8 {[%clk 0:01:53]} 16. Ng3 {[%clk 0:01:46]}  Be8 {[%clk 0:01:41]} 17. Nh5 {[%clk 0:01:38]}  f6 {[%clk 0:01:38]} 18. exf6 {[%clk 0:01:15]}  gxf6 {[%clk 0:01:36]} 19. Ng3 {[%clk 0:01:04]}  Kh8 {[%clk 0:01:04]} 20. Rfe1 {[%clk 0:01:01]}  Rc6 {[%clk 0:01:00]} 21. Re2 {[%clk 0:00:56]}  Qd7 {[%clk 0:00:49]} 22. Rae1 {[%clk 0:00:55]}  Nc8 {[%clk 0:00:49]} 23. Bh6 {[%clk 0:00:25]}  Rg8 {[%clk 0:00:49]} 24. Qf4 {[%clk 0:00:23]}  Bd8 {[%clk 0:00:17]} 25. h4 {[%clk 0:00:14]}  Qf7 {[%clk 0:00:11]} 26. h5 {[%clk 0:00:11]}  Bc7 {[%clk 0:00:08]} 27. Qh4 {[%clk 0:00:11]}  Ne7 {[%clk 0:00:08]} 28. Bf4 {[%clk 0:00:10]}  Bd8 {[%clk 0:00:08]} 29. Qh3 {[%clk 0:00:09]}  Bd7 {[%clk 0:00:08]} 30. Ne5 {[%clk 0:00:09]}  Qe8 {[%clk 0:00:04]} 31. Nxd7 {[%clk 0:00:09]}  Qxd7 {[%clk 0:00:04]} 32. Rxe6 {[%clk 0:00:10]}  Rxe6 {[%clk 0:00:03]} 33. Qxe6 {[%clk 0:00:11]}  Qxe6 {[%clk 0:00:04]} 34. Rxe6 {[%clk 0:00:12]}  Rg4 {[%clk 0:00:03]} 35. Bd6 {[%clk 0:00:09]}  Nc6 {[%clk 0:00:03]} 36. Nf5 {[%clk 0:00:09]}  Rg5 {[%clk 0:00:02]} 37. Re8+ {[%clk 0:00:09]}  Rg8 {[%clk 0:00:02]} 38. Re6 {[%clk 0:00:09]}  Rg5 {[%clk 0:00:02]} 39. Nh6 {[%clk 0:00:07]}  Kg7 {[%clk 0:00:03]} 40. Bf4 {[%clk 0:00:03]}  Kxh6 {[%clk 0:00:03]} 41. Rd6 {[%clk 0:00:03]}  Bc7 {[%clk 0:00:03]} 42. Rxf6+ {[%clk 0:00:03]}  Kxh5 {[%clk 0:00:03]} 43. Bxg5 {[%clk 0:00:04]}  Kxg5 {[%clk 0:00:04]} 44. Rf7 {[%clk 0:00:04]}  Bb6 {[%clk 0:00:04]} 45. Rxb7 {[%clk 0:00:04]}  Bxd4 {[%clk 0:00:04]} 46. Rxh7 {[%clk 0:00:04]}  Ne5 {[%clk 0:00:05]} 47. Rh3 {[%clk 0:00:02]}  Kf5 {[%clk 0:00:05]} 48. Kf1 {[%clk 0:00:02]}  Ng4 {[%clk 0:00:05]} 49. Rf3+ {[%clk 0:00:02]}  Ke4 {[%clk 0:00:06]} 50. Ke2 {[%clk 0:00:03]}  Ne5 {[%clk 0:00:06]} 51. Rh3 {[%clk 0:00:03]}  Nc6 {[%clk 0:00:07]} 52. Rh4+ {[%clk 0:00:03]}  Ke5 {[%clk 0:00:07]} 53. a3 {[%clk 0:00:04]}  Bb2 {[%clk 0:00:07]} 54. Ra4 {[%clk 0:00:02]}  a5 {[%clk 0:00:06]} 55. b4 {[%clk 0:00:03]}  axb4 {[%clk 0:00:05]} 56. axb4 {[%clk 0:00:04]}  Bc3 {[%clk 0:00:05]} 57. b5 {[%clk 0:00:04]}  Nd4+ {[%clk 0:00:06]} 58. Kd3 {[%clk 0:00:03]}  Nxb5 {[%clk 0:00:07]} 59. Rh4 {[%clk 0:00:04]}  Be1 {[%clk 0:00:07]} 60. Rh5+ {[%clk 0:00:04]}  Kd6 {[%clk 0:00:07]} 61. f4 {[%clk 0:00:04]}  Bg3 {[%clk 0:00:05]} 62. Rh6+ {[%clk 0:00:04]}  Kc5 {[%clk 0:00:05]} 63. f5 {[%clk 0:00:05]}  Be5 {[%clk 0:00:05]} 64. f6 {[%clk 0:00:05]}  Nd6 {[%clk 0:00:05]} 65. g4 {[%clk 0:00:06]}  Bf4 {[%clk 0:00:05]} 66. Rg6 {[%clk 0:00:05]}  Be5 {[%clk 0:00:06]} 67. g5 {[%clk 0:00:06]}  Kc6 {[%clk 0:00:06]} 68. Rg7 {[%clk 0:00:06]}  Nf5 {[%clk 0:00:05]} 69. Rh7 {[%clk 0:00:06]}  Kd6 {[%clk 0:00:02]} 70. f7 {[%clk 0:00:06]}  Ke7 {[%clk 0:00:02]} 71. g6 {[%clk 0:00:07]}  Bg7 {[%clk 0:00:03]} 72. Rh1 {[%clk 0:00:07]}  Kf6 {[%clk 0:00:02]} 73. Rf1 {[%clk 0:00:07]}  Kxg6 {[%clk 0:00:03]} 74. f8=Q {[%clk 0:00:05]}  Bxf8 {[%clk 0:00:03]} 75. Rg1+ {[%clk 0:00:06]}  Kf6 {[%clk 0:00:04]} 76. Rf1 {[%clk 0:00:07]}  Ke5 {[%clk 0:00:03]} 77. Re1+ {[%clk 0:00:07]}  Kd6 {[%clk 0:00:04]} 78. Rf1 {[%clk 0:00:08]}  Ke6 {[%clk 0:00:04]} 79. Re1+ {[%clk 0:00:08]}  Kf6 {[%clk 0:00:05]} 80. Rf1 {[%clk 0:00:09]}  Bc5 {[%clk 0:00:06]} 81. Rc1 {[%clk 0:00:09]}  Bd6 {[%clk 0:00:06]} 82. Rf1 {[%clk 0:00:08]}  Ke6 {[%clk 0:00:06]} 83. Rh1 {[%clk 0:00:09]}  Be5 {[%clk 0:00:07]} 84. Re1 {[%clk 0:00:08]}  Kd6 {[%clk 0:00:07]} 85. Rb1 {[%clk 0:00:09]}  Nd4 {[%clk 0:00:08]} 86. Rh1 {[%clk 0:00:08]}  Ne6 {[%clk 0:00:08]} 87. Rh6 {[%clk 0:00:07]}  Kd7 {[%clk 0:00:08]} 88. Rh7+ {[%clk 0:00:07]}  Kd6 {[%clk 0:00:09]} 89. Rh1 {[%clk 0:00:08]}  Nf4+ {[%clk 0:00:09]} 90. Ke3 {[%clk 0:00:09]}  d4+ {[%clk 0:00:07]} 91. Ke4 {[%clk 0:00:09]}  Nd5 {[%clk 0:00:08]} 92. Rh6+ {[%clk 0:00:09]}  Nf6+ {[%clk 0:00:08]} 93. Kd3 {[%clk 0:00:09]}  Kd5 {[%clk 0:00:09]} 94. Rh1 {[%clk 0:00:09]}  Nd7 {[%clk 0:00:09]} 95. Rh4 {[%clk 0:00:05]}  Nc5+ {[%clk 0:00:10]} 96. Kd2 {[%clk 0:00:06]}  d3 {[%clk 0:00:10]} 97. Rh3 {[%clk 0:00:06]}  Ke4 {[%clk 0:00:08]} 98. Re3+ {[%clk 0:00:05]}  Kd4 {[%clk 0:00:09]} 99. Rh3 {[%clk 0:00:05]}  Bf4+ {[%clk 0:00:09]} 100. Kd1 {[%clk 0:00:05]}  Ne4 {[%clk 0:00:09]} 101. Rxd3+ {[%clk 0:00:04]}  Kxd3 {[%clk 0:00:09]} 102. Ke1 {[%clk 0:00:05]}  Bd2+ {[%clk 0:00:10]} 103. Kf1 {[%clk 0:00:05]}  Be3 {[%clk 0:00:09]} 104. Kg2 {[%clk 0:00:06]}  Nd2 {[%clk 0:00:10]} 105. Kg3 {[%clk 0:00:06]}  Ke2 {[%clk 0:00:11]} 106. Kg4 {[%clk 0:00:07]}  Kd3 {[%clk 0:00:10]} 107. Kf5 {[%clk 0:00:08]}  Bd4 {[%clk 0:00:10]} 108. Kg4 {[%clk 0:00:09]}  Ne4 {[%clk 0:00:11]} 109. Kf5 {[%clk 0:00:10]}  Ke3 {[%clk 0:00:12]} 110. Ke6 {[%clk 0:00:10]}  Kf4 {[%clk 0:00:12]} 111. Kd5 {[%clk 0:00:11]}  Be3 {[%clk 0:00:13]} 112. Kc4 {[%clk 0:00:12]}  Nd2+ {[%clk 0:00:13]} 113. Kd3 {[%clk 0:00:13]}  Kf3 {[%clk 0:00:14]} 114. Kc2 {[%clk 0:00:12]}  Ke4 {[%clk 0:00:15]} 115. Kc3 {[%clk 0:00:13]}  Nf3 {[%clk 0:00:14]} 116. Kc4 {[%clk 0:00:13]}  Bd4 {[%clk 0:00:15]} 117. Kb5 {[%clk 0:00:13]}  Ne5 {[%clk 0:00:15]} 118. Kb4 {[%clk 0:00:14]}  Kd5 {[%clk 0:00:16]} 119. Kb3 {[%clk 0:00:14]}  Bc5 {[%clk 0:00:16]} 120. Kc2 {[%clk 0:00:15]}  Kc4 {[%clk 0:00:16]} 121. Kd2 {[%clk 0:00:16]}  Bd4 {[%clk 0:00:16]} 122. Ke2 {[%clk 0:00:17]}  Kd5 {[%clk 0:00:16]} 123. Kd2 {[%clk 0:00:17]}  Ke4 {[%clk 0:00:17]} 124. Kc2 {[%clk 0:00:17]}  Ke3 {[%clk 0:00:17]} 125. Kb3 {[%clk 0:00:18]}  Kd3 {[%clk 0:00:18]} 126. Kb4 {[%clk 0:00:19]}  Nc4 {[%clk 0:00:15]} 127. Kb5 {[%clk 0:00:20]}  Ne5 {[%clk 0:00:14]} 128. Ka6 {[%clk 0:00:18]}  Kc4 {[%clk 0:00:14]} 129. Kb7 {[%clk 0:00:19]}  Kd5 {[%clk 0:00:15]} 130. Kc7 {[%clk 0:00:20]}  Bc5 {[%clk 0:00:15]} 131. Kb7 {[%clk 0:00:20]}  Kd6 {[%clk 0:00:14]} 132. Ka6 {[%clk 0:00:21]}  Kc6 {[%clk 0:00:15]} 133. Ka5 {[%clk 0:00:21]}  Nc4+ {[%clk 0:00:11]} 134. Ka4 {[%clk 0:00:22]}  Nd2 {[%clk 0:00:11]} 135. Ka5 {[%clk 0:00:22]}  Bb6+ {[%clk 0:00:12]} 136. Ka4 {[%clk 0:00:23]}  Kc5 {[%clk 0:00:11]} 137. Ka3 {[%clk 0:00:23]}  Kc4 {[%clk 0:00:12]} 138. Kb2 {[%clk 0:00:24]}  Ba5 {[%clk 0:00:12]} 139. Kc2 {[%clk 0:00:25]}  Ne4 {[%clk 0:00:12]} 140. Kb2 {[%clk 0:00:25]}  Bc3+ {[%clk 0:00:12]} 141. Kc2 {[%clk 0:00:25]}  Nf2 {[%clk 0:00:11]} 142. Kc1 {[%clk 0:00:25]}  Kb3 {[%clk 0:00:12]} 143. Kb1 {[%clk 0:00:26]}  Ne4 {[%clk 0:00:10]} 144. Kc1 {[%clk 0:00:27]}  Nf2 {[%clk 0:00:08]} 145. Kb1 {[%clk 0:00:27]}  Nd1 {[%clk 0:00:08]} 146. Kc1 {[%clk 0:00:28]}  Ne3 {[%clk 0:00:09]} 147. Kb1 {[%clk 0:00:28]}  Bd2 {[%clk 0:00:08]} 148. Ka1 {[%clk 0:00:29]}  Nc2+ {[%clk 0:00:08]} 149. Kb1 {[%clk 0:00:30]}  Na3+ {[%clk 0:00:09]} 150. Ka1 {[%clk 0:00:30]}  Bc3# {[%clk 0:00:10]} 0-1


[Site "https://www.chess.com"]

[Event "Titled Tuesday Blitz December 27 Late 2022"]
[White "Floresvillar Gonzalez, Luis Migu"]
[Black "Shtompel, Yuriy"]
[WhiteFideId "5100542"]
[BlackFideId "14168278"]
[WhiteElo "2043"]
[BlackElo "1938"]
[Result "0-1"]
[Round "05"]
[TimeControl "180+2"]
[Date "2022.12.27"]
[WhiteClock "0:00:33"]
[BlackClock "0:00:29"]

1. e4 {[%clk 0:02:54]}  c5 {[%clk 0:02:57]} 2. d4 {[%clk 0:02:54]}  cxd4 {[%clk 0:02:56]} 3. c3 {[%clk 0:02:54]}  Nf6 {[%clk 0:02:56]} 4. e5 {[%clk 0:02:53]}  Nd5 {[%clk 0:02:57]} 5. Nf3 {[%clk 0:02:54]}  Nc6 {[%clk 0:02:57]} 6. Bc4 {[%clk 0:02:54]}  Nb6 {[%clk 0:02:55]} 7. Bb3 {[%clk 0:02:53]}  d6 {[%clk 0:02:53]} 8. cxd4 {[%clk 0:02:42]}  dxe5 {[%clk 0:02:52]} 9. d5 {[%clk 0:02:39]}  Nb4 {[%clk 0:01:55]} 10. Nc3 {[%clk 0:02:18]}  e6 {[%clk 0:01:52]} 11. dxe6 {[%clk 0:01:57]}  Nd3+ {[%clk 0:01:45]} 12. Ke2 {[%clk 0:01:48]}  Nxc1+ {[%clk 0:01:44]} 13. Rxc1 {[%clk 0:01:43]}  Bxe6 {[%clk 0:01:22]} 14. Bxe6 {[%clk 0:01:34]}  fxe6 {[%clk 0:01:19]} 15. Qxd8+ {[%clk 0:01:22]}  Rxd8 {[%clk 0:01:19]} 16. Nxe5 {[%clk 0:01:23]}  Bd6 {[%clk 0:01:18]} 17. Nf3 {[%clk 0:01:06]}  Ke7 {[%clk 0:01:07]} 18. Rhd1 {[%clk 0:01:05]}  a6 {[%clk 0:01:06]} 19. Ne4 {[%clk 0:01:01]}  Bf4 {[%clk 0:01:03]} 20. Rxd8 {[%clk 0:00:56]}  Rxd8 {[%clk 0:01:02]} 21. Rd1 {[%clk 0:00:55]}  Rc8 {[%clk 0:00:41]} 22. Nc3 {[%clk 0:00:50]}  Nc4 {[%clk 0:00:37]} 23. g3 {[%clk 0:00:49]}  Nxb2 {[%clk 0:00:33]} 24. gxf4 {[%clk 0:00:43]}  Rxc3 {[%clk 0:00:32]} 25. Rd3 {[%clk 0:00:33]}  Rxd3 {[%clk 0:00:29]} 0-1


[Site "https://www.chess.com"]

[Event "Titled Tuesday Blitz December 27 Late 2022"]
[White "Freile Martin, Javier"]
[Black "Ardila, Oscar Humberto"]
[WhiteFideId "3600165"]
[BlackFideId "4404742"]
[WhiteElo "2329"]
[BlackElo "1982"]
[Result "1-0"]
[Round "05"]
[TimeControl "180+2"]
[Date "2022.12.27"]
[WhiteClock "0:00:17"]
[BlackClock "0:00:10"]

1. d4 {[%clk 0:02:57]}  Nf6 {[%clk 0:02:59]} 2. c4 {[%clk 0:02:55]}  e6 {[%clk 0:03:00]} 3. Nc3 {[%clk 0:02:54]}  Bb4 {[%clk 0:03:00]} 4. Bg5 {[%clk 0:02:54]}  h6 {[%clk 0:02:59]} 5. Bd2 {[%clk 0:02:53]}  O-O {[%clk 0:02:56]} 6. Qc2 {[%clk 0:02:50]}  d5 {[%clk 0:02:56]} 7. e3 {[%clk 0:02:47]}  c5 {[%clk 0:02:55]} 8. dxc5 {[%clk 0:02:45]}  Bxc5 {[%clk 0:02:51]} 9. Nf3 {[%clk 0:02:44]}  Nc6 {[%clk 0:02:51]} 10. cxd5 {[%clk 0:02:42]}  Nxd5 {[%clk 0:02:50]} 11. a3 {[%clk 0:02:21]}  b6 {[%clk 0:02:40]} 12. Nxd5 {[%clk 0:02:10]}  Qxd5 {[%clk 0:02:39]} 13. Bc4 {[%clk 0:02:08]}  Qd6 {[%clk 0:02:30]} 14. b4 {[%clk 0:02:07]}  Nd4 {[%clk 0:02:14]} 15. exd4 {[%clk 0:02:05]}  Bxd4 {[%clk 0:02:15]} 16. Nxd4 {[%clk 0:02:05]}  Qxd4 {[%clk 0:02:15]} 17. Rd1 {[%clk 0:02:01]}  Bb7 {[%clk 0:02:11]} 18. O-O {[%clk 0:02:00]}  Qg4 {[%clk 0:02:10]} 19. f3 {[%clk 0:01:56]}  Qh4 {[%clk 0:02:09]} 20. Be3 {[%clk 0:01:50]}  Rac8 {[%clk 0:02:08]} 21. Rd4 {[%clk 0:01:50]}  Qf6 {[%clk 0:02:05]} 22. Qd2 {[%clk 0:01:48]}  Rfd8 {[%clk 0:02:00]} 23. Be2 {[%clk 0:01:45]}  e5 {[%clk 0:01:53]} 24. Rxd8+ {[%clk 0:01:41]}  Rxd8 {[%clk 0:01:53]} 25. Qb2 {[%clk 0:01:39]}  Qe6 {[%clk 0:01:46]} 26. Rd1 {[%clk 0:01:35]}  Rxd1+ {[%clk 0:01:44]} 27. Bxd1 {[%clk 0:01:35]}  Qd5 {[%clk 0:01:28]} 28. Qd2 {[%clk 0:01:33]}  f6 {[%clk 0:01:04]} 29. Qxd5+ {[%clk 0:01:29]}  Bxd5 {[%clk 0:01:04]} 30. a4 {[%clk 0:01:30]}  Kf7 {[%clk 0:00:58]} 31. a5 {[%clk 0:01:29]}  bxa5 {[%clk 0:00:58]} 32. bxa5 {[%clk 0:01:30]}  a6 {[%clk 0:00:58]} 33. Be2 {[%clk 0:01:28]}  Bb7 {[%clk 0:00:58]} 34. Bc4+ {[%clk 0:01:27]}  Kg6 {[%clk 0:00:58]} 35. Kf2 {[%clk 0:01:26]}  f5 {[%clk 0:00:57]} 36. h4 {[%clk 0:01:22]}  f4 {[%clk 0:00:53]} 37. Bb6 {[%clk 0:01:21]}  Kf5 {[%clk 0:00:47]} 38. h5 {[%clk 0:01:17]}  Kg5 {[%clk 0:00:48]} 39. Bf7 {[%clk 0:01:16]}  Kf6 {[%clk 0:00:48]} 40. Bg6 {[%clk 0:01:14]}  Bd5 {[%clk 0:00:43]} 41. Bd8+ {[%clk 0:01:12]}  Ke6 {[%clk 0:00:43]} 42. Bd3 {[%clk 0:01:08]}  Bb7 {[%clk 0:00:43]} 43. Bc7 {[%clk 0:01:05]}  Kf6 {[%clk 0:00:38]} 44. g4 {[%clk 0:00:58]}  fxg3+ {[%clk 0:00:30]} 45. Kxg3 {[%clk 0:00:58]}  Kg5 {[%clk 0:00:29]} 46. Bxe5 {[%clk 0:00:51]}  Kxh5 {[%clk 0:00:29]} 47. Bxg7 {[%clk 0:00:51]}  Kg5 {[%clk 0:00:29]} 48. f4+ {[%clk 0:00:50]}  Kh5 {[%clk 0:00:28]} 49. Bf6 {[%clk 0:00:42]}  Bc8 {[%clk 0:00:26]} 50. Bh4 {[%clk 0:00:37]}  Bb7 {[%clk 0:00:20]} 51. Bd8 {[%clk 0:00:36]}  Bc8 {[%clk 0:00:19]} 52. f5 {[%clk 0:00:31]}  Bxf5 {[%clk 0:00:12]} 53. Bxa6 {[%clk 0:00:25]}  Kg6 {[%clk 0:00:11]} 54. Bb7 {[%clk 0:00:21]}  Bd3 {[%clk 0:00:11]} 55. Kf4 {[%clk 0:00:20]}  h5 {[%clk 0:00:11]} 56. Be4+ {[%clk 0:00:17]}  Bxe4 {[%clk 0:00:10]} 57. Kxe4 {[%clk 0:00:17]} 1-0


[Site "https://www.chess.com"]